fUSD/lending_fUSD_20260202
["ID","MTS","AMOUNT","RATE_DAILY","PERIOD"]
[404245647,1769998242135,-250.55733734,0.00016438,2]
[404245648,1769998242144,-773.74,0.0001647,2]
[404245649,1769998242153,-159.04434353,0.00016568,2]
[404245650,1769998242163,-869.34,0.00016672,2]
[404245651,1769998242173,-9447.0,0.00016688,2]
[404245652,1769998242182,-17305.5201827,0.00016689,2]
[404245653,1769998242192,-1000.0,0.00016717,2]
[404245654,1769998242202,-500.0,0.00016748,2]
[404245655,1769998242212,-500.89784707,0.00016763,2]
[404245656,1769998242222,-1000.0,0.00016763,2]
[404245657,1769998242231,-1002.35695832,0.00016763,2]
[404245658,1769998242240,-486.90150068,0.00016763,2]
[404245659,1769998242249,-464.35211832,0.00016763,2]
[404245660,1769998242259,-1000.0,0.00016763,2]
[404245661,1769998242268,-1000.0,0.00016763,2]
[404245662,1769998242277,-1000.0,0.00016763,2]
[404245663,1769998242286,-500.89178293,0.00016763,2]
[404245664,1769998242295,-1000.0,0.00016763,2]
[404245665,1769998242305,-200.70028911,0.00016763,2]
[404245666,1769998242314,-501.02558099,0.00016763,2]
[404245667,1769998242323,-896.81248005,0.00016763,2]
[404245668,1769998242333,-1000.0,0.00016763,2]
[404245669,1769998242342,-1000.0,0.00016763,2]
[404245670,1769998242353,-1086.45296103,0.00016763,2]
[404245671,1769998242363,-1000.0,0.00016763,2]
[404245672,1769998242372,-1002.81173723,0.00016763,2]
[404245673,1769998242383,-1000.0,0.00016763,2]
[404245674,1769998242392,-1000.0,0.00016763,2]
[404245675,1769998242402,-1000.0,0.00016763,2]
[404245676,1769998242411,-1000.0,0.00016763,2]
[404245677,1769998242420,-1017.01569061,0.00016763,2]
[404245678,1769998242429,-1000.0,0.00016763,2]
[404245679,1769998242439,-1000.0,0.00016763,2]
[404245680,1769998242448,-1000.0,0.00016763,2]
[404245681,1769998242458,-1000.0,0.00016763,2]
[404245682,1769998242467,-1000.0,0.00016763,2]
[404245683,1769998242477,-1000.0,0.00016763,2]
[404245684,1769998242486,-1001.08336444,0.00016763,2]
[404245685,1769998242497,-550.09529227,0.00016763,2]
[404245686,1769998242506,-1000.0,0.00016763,2]
[404245687,1769998242515,-1000.0,0.00016763,2]
[404245688,1769998242526,-1000.0,0.00016763,2]
[404245689,1769998242535,-500.72856131,0.00016763,2]
[404245690,1769998242545,-1000.0,0.00016763,2]
[404245691,1769998242554,-1000.0,0.00016763,2]
[404245692,1769998242563,-1000.0,0.00016763,2]
[404245693,1769998242573,-1000.0,0.00016763,2]
[404245694,1769998242583,-1000.0,0.00016763,2]
[404245695,1769998242593,-1000.0,0.00016763,2]
[404245696,1769998242602,-1000.0,0.00016763,2]
[404245697,1769998242611,-1000.0,0.00016763,2]
[404245698,1769998242620,-1000.0,0.00016763,2]
[404245699,1769998242628,-291.61164288,0.00016763,2]
[404245700,1769998242638,-1000.0,0.00016763,2]
[404245701,1769998242647,-185.46503654,0.00016763,2]
[404245702,1769998242656,-317.35158593,0.00016992,2]
[404245703,1769998242665,-3253.0,0.00016992,2]
[404245704,1769998242674,-6579.0,0.00016992,2]
[404245705,1769998242683,-569.318,0.00016992,2]
[404245706,1769998242692,-300.0,0.00017,2]
[404245709,1769998242702,-500.0,0.00017014,2]
[404245711,1769998242712,-150.00012548,0.00017058,2]
[404245713,1769998242722,-17305.5201827,0.00017092,2]
[404245714,1769998242732,-578.20924308,0.00017099,2]
[404245715,1769998242742,-174.61919141,0.00017099,2]
[404245716,1769998242754,-500.0,0.00017099,2]
[404245717,1769998242763,-500.0,0.00017099,2]
[404245718,1769998242773,-500.0,0.00017099,2]
[404245719,1769998242783,-500.0,0.00017099,2]
[404245720,1769998242792,-500.0,0.00017099,2]
[404245721,1769998242802,-500.0,0.00017099,2]
[404245722,1769998242812,-500.0,0.00017099,2]
[404245723,1769998242821,-322.6107,0.00017099,2]
[404245724,1769998242831,-500.0,0.00017099,2]
[404245725,1769998242840,-500.0,0.00017099,2]
[404245726,1769998242850,-500.0,0.00017099,2]
[404245727,1769998242860,-500.0,0.00017099,2]
[404245728,1769998242869,-500.0,0.00017099,2]
[404245729,1769998242880,-500.0,0.00017099,2]
[404245730,1769998242889,-500.0,0.00017099,2]
[404245731,1769998242898,-500.0,0.00017099,2]
[404245732,1769998242908,-500.0,0.00017099,2]
[404245733,1769998242917,-500.0,0.00017099,2]
[404245734,1769998242928,-500.0,0.00017099,2]
[404245735,1769998242942,-500.0,0.00017099,2]
[404245736,1769998242952,-209.40437684,0.00017099,2]
[404245737,1769998242963,-500.0,0.00017099,2]
[404245738,1769998242973,-500.0,0.00017099,2]
[404245739,1769998242982,-500.0,0.00017099,2]
[404245740,1769998242992,-250.0,0.00017099,2]
[404245741,1769998243001,-209.40437684,0.00017099,2]
[404245742,1769998243012,-250.0,0.00017099,2]
[404245743,1769998243023,-500.0,0.00017099,2]
[404245744,1769998243034,-250.0,0.00017099,2]
[404245745,1769998243043,-500.0,0.00017099,2]
[404245746,1769998243052,-250.0,0.00017099,2]
[404245747,1769998243063,-500.0,0.00017099,2]
[404245748,1769998243073,-250.0,0.00017099,2]
[404245749,1769998243082,-500.0,0.00017099,2]
[404245750,1769998243092,-250.0,0.00017099,2]
[404245751,1769998243100,-500.0,0.00017099,2]
[404245752,1769998243111,-250.0,0.00017099,2]
[404245753,1769998243121,-500.0,0.00017099,2]
[404245754,1769998243130,-250.0,0.00017099,2]
[404245755,1769998243140,-500.0,0.00017099,2]
[404245756,1769998243150,-250.0,0.00017099,2]
[404245757,1769998243160,-500.0,0.00017099,2]
[404245758,1769998243169,-250.0,0.00017099,2]
[404245759,1769998243179,-500.0,0.00017099,2]
[404245760,1769998243188,-250.0,0.00017099,2]
[404245761,1769998243198,-500.0,0.00017099,2]
[404245762,1769998243209,-500.0,0.00017099,2]
[404245763,1769998243219,-500.0,0.00017099,2]
[404245764,1769998243229,-500.0,0.00017099,2]
[404245765,1769998243239,-500.0,0.00017099,2]
[404245766,1769998243250,-500.0,0.00017099,2]
[404245767,1769998243260,-1428.38747117,0.00017099,2]
[404245768,1769998243271,-500.0,0.00017099,2]
[404245769,1769998243280,-500.0,0.00017099,2]
[404245770,1769998243289,-500.0,0.00017099,2]
[404245771,1769998243298,-500.0,0.00017099,2]
[404245772,1769998243307,-500.0,0.00017099,2]
[404245773,1769998243315,-500.0,0.00017099,2]
[404245774,1769998243324,-500.0,0.00017099,2]
[404245775,1769998243333,-500.0,0.00017099,2]
[404245776,1769998243342,-500.0,0.00017099,2]
[404245777,1769998243352,-500.0,0.00017099,2]
[404245778,1769998243361,-500.0,0.00017099,2]
[404245779,1769998243370,-500.0,0.00017099,2]
[404245780,1769998243381,-500.0,0.00017099,2]
[404245781,1769998243390,-500.0,0.00017099,2]
[404245782,1769998243400,-500.0,0.00017099,2]
[404245783,1769998243409,-500.0,0.00017099,2]
[404245784,1769998243418,-500.0,0.00017099,2]
[404245785,1769998243427,-500.0,0.00017099,2]
[404245786,1769998243437,-500.0,0.00017099,2]
[404245787,1769998243446,-500.0,0.00017099,2]
[404245788,1769998243455,-500.0,0.00017099,2]
[404245789,1769998243466,-500.0,0.00017099,2]
[404245790,1769998243475,-500.0,0.00017099,2]
[404245791,1769998243485,-500.0,0.00017099,2]
[404245792,1769998243497,-500.0,0.00017099,2]
[404245793,1769998243506,-500.0,0.00017099,2]
[404245794,1769998243515,-500.0,0.00017099,2]
[404245795,1769998243525,-500.0,0.00017099,2]
[404245797,1769998243535,-344.38825217,0.00017099,2]
[404245799,1769998243544,-250.0,0.00017099,2]
[404245800,1769998243553,-250.0,0.00017099,2]
[404245801,1769998243563,-250.0,0.00017099,2]
[404245802,1769998243572,-250.0,0.00017099,2]
[404245803,1769998243581,-250.0,0.00017099,2]
[404245804,1769998243590,-209.40437684,0.00017099,2]
[404245806,1769998243600,-250.0,0.00017099,2]
[404245807,1769998243609,-250.0,0.00017099,2]
[404245809,1769998243618,-250.0,0.00017099,2]
[404245811,1769998243628,-250.0,0.00017099,2]
[404245813,1769998243638,-250.0,0.00017099,2]
[404245814,1769998243647,-250.0,0.00017099,2]
[404245815,1769998243656,-721.12765535,0.00017099,2]
[404245816,1769998243665,-250.0,0.00017099,2]
[404245817,1769998243675,-250.0,0.00017099,2]
[404245818,1769998243684,-250.0,0.00017099,2]
[404245819,1769998243696,-250.0,0.00017099,2]
[404245820,1769998243707,-250.0,0.00017099,2]
[404245821,1769998243718,-250.0,0.00017099,2]
[404245822,1769998243728,-250.0,0.00017099,2]
[404245823,1769998243739,-250.0,0.00017099,2]
[404245824,1769998243749,-250.0,0.00017099,2]
[404245825,1769998243759,-250.0,0.00017099,2]
[404245826,1769998243769,-250.0,0.00017099,2]
[404245827,1769998243778,-250.0,0.00017099,2]
[404245828,1769998243787,-250.0,0.00017099,2]
[404245829,1769998243796,-250.0,0.00017099,2]
[404245830,1769998243808,-250.0,0.00017099,2]
[404245831,1769998243815,-250.0,0.00017099,2]
[404245832,1769998243823,-250.0,0.00017099,2]
[404245833,1769998243831,-250.0,0.00017099,2]
[404245834,1769998243840,-250.0,0.00017099,2]
[404245835,1769998243848,-879.69414454,0.00017099,2]
[404245836,1769998243857,-250.0,0.00017099,2]
[404245837,1769998243866,-250.0,0.00017099,2]
[404245838,1769998243874,-250.0,0.00017099,2]
[404245839,1769998243883,-151.0,0.00017099,2]
[404245840,1769998243892,-151.0,0.00017099,2]
[404245841,1769998243901,-151.0,0.00017099,2]
[404245842,1769998243910,-151.0,0.00017099,2]
[404245843,1769998243919,-151.0,0.00017099,2]
[404245844,1769998243930,-151.0,0.00017099,2]
[404245845,1769998243942,-151.0,0.00017099,2]
[404245846,1769998243953,-151.0,0.00017099,2]
[404245847,1769998243962,-151.0,0.00017099,2]
[404245848,1769998243973,-151.0,0.00017099,2]
[404245849,1769998243983,-151.0,0.00017099,2]
[404245850,1769998243992,-168.90333538,0.00017099,2]
[404245851,1769998244002,-151.0,0.00017126,2]
[404245852,1769998244011,-267.0,0.00017126,2]
[404245853,1769998244020,-150.0,0.00017126,2]
[404245854,1769998244031,-200.0,0.00017126,2]
[404245855,1769998244040,-228.629,0.00017126,2]
[404245856,1769998244049,-196.165,0.00017126,2]
[404245857,1769998244058,-277.537,0.00017126,2]
[404245858,1769998244067,-245.617,0.00017126,2]
[404245859,1769998244076,-158.676,0.00017126,2]
[404245860,1769998244085,-199.072,0.00017126,2]
[404245861,1769998244094,-285.665,0.00017126,2]
[404245862,1769998244103,-151.345,0.00017126,2]
[404245863,1769998244112,-151.0,0.00017126,2]
[404245864,1769998244120,-3497.391,0.00017126,2]
[404245865,1769998244131,-1338.357,0.00017126,2]
[404245866,1769998244140,-728.464,0.00017126,2]
[404245867,1769998244149,-1410.0,0.00017126,2]
[404245868,1769998244158,-1274.162,0.00017126,2]
[404245869,1769998244168,-161.033,0.00017126,2]
[404245870,1769998244180,-217.15233878,0.00017154,2]
[404245871,1769998244190,-271.19,0.00017178,2]
[404245872,1769998244200,-301.18,0.00017178,2]
[404245873,1769998244210,-225.18697532,0.00017209,2]
[404245874,1769998244220,-1000.0,0.0001726,2]
[404245875,1769998244231,-2351.0,0.00017261,2]
[404245876,1769998244241,-233.51889341,0.00017264,2]
[404245877,1769998244251,-500.0,0.00017296,2]
[404245878,1769998244261,-1500.0,0.00017311,2]
[404245879,1769998244271,-1500.0,0.00017311,2]
[404245880,1769998244281,-1500.0,0.00017311,2]
[404245881,1769998244291,-663.44066637,0.00017311,2]
[404245882,1769998244300,-1122.87168328,0.00017311,2]
[404245883,1769998244308,-1500.0,0.00017311,2]
[404245884,1769998244316,-1002.13331368,0.00017311,2]
[404245885,1769998244324,-740.83933027,0.00017311,2]
[404245886,1769998244334,-1500.0,0.00017311,2]
[404245887,1769998244343,-542.63998213,0.00017311,2]
[404245888,1769998244352,-1500.0,0.00017311,2]
[404245889,1769998244362,-501.69538037,0.00017311,2]
[404245890,1769998244371,-1500.0,0.00017311,2]
[404245891,1769998244382,-1500.0,0.00017311,2]
[404245892,1769998244391,-1501.37917865,0.00017311,2]
[404245893,1769998244400,-843.08326797,0.00017311,2]
[404245894,1769998244410,-508.230722,0.00017311,2]
[404245895,1769998244420,-501.51187031,0.00017311,2]
[404245896,1769998244429,-1500.0,0.00017311,2]
[404245897,1769998244438,-503.56149344,0.00017311,2]
[404245898,1769998244448,-1002.56224964,0.00017311,2]
[404245899,1769998244458,-1005.45817911,0.00017311,2]
[404245900,1769998244468,-502.69407289,0.00017311,2]
[404245901,1769998244477,-1500.0,0.00017311,2]
[404245902,1769998244487,-1003.10188966,0.00017311,2]
[404245903,1769998244496,-487.31307274,0.00017311,2]
[404245904,1769998244506,-1500.0,0.00017311,2]
[404245905,1769998244515,-645.60955598,0.00017311,2]
[404245906,1769998244525,-1004.6853335,0.00017311,2]
[404245907,1769998244534,-1276.88278142,0.00017311,2]
[404245908,1769998244543,-1500.0,0.00017311,2]
[404245909,1769998244553,-242.15909246,0.00017319,2]
[404245910,1769998244562,-251.11897888,0.00017374,2]
[404245911,1769998244572,-159.04434353,0.00017397,2]
[404245912,1769998244582,-2323.0,0.000174,2]
[404245913,1769998244592,-260.4103811,0.00017429,2]
[404245914,1769998244601,-869.34,0.00017466,2]
[404245915,1769998244611,-270.0455652,0.00017484,2]
[404245916,1769998244620,-17305.5201827,0.00017496,2]
[404245917,1769998244629,-1000.0,0.00017534,2]
[404245918,1769998244639,-280.03725112,0.00017539,2]
[404245919,1769998244649,-1899.6725397,0.00017562,2]
[404245920,1769998244658,-868.9,0.00017574,2]
[404245921,1769998244667,-290.39862941,0.00017594,2]
[404245922,1769998244676,-3904.0,0.00017598,2]
[404245923,1769998244686,-2621.63881658,0.0001764,2]
[404245924,1769998244695,-181.08010149,0.00017647,2]
[404245925,1769998244704,-217.15233878,0.00017647,2]
[404245926,1769998244712,-217.15233878,0.00017647,2]
[404245927,1769998244722,-1481.23780761,0.00017647,2]
[404245928,1769998244732,-301.1433787,0.00017649,2]
[404245929,1769998244742,-2832.0,0.0001768,2]
[404245930,1769998244752,-520.86163867,0.00017705,2]
[404245931,1769998244761,-25000.0,0.00017715,3]
[404245932,1769998244770,-25000.0,0.00017724,3]
[404245933,1769998244779,-25000.0,0.00017733,3]
[404245934,1769998244787,-25000.0,0.00017742,3]
[404245935,1769998244797,-25000.0,0.0001775,3]
[404245936,1769998244806,-10000.0,0.00017754,2]
[404245937,1769998244815,-25000.0,0.00017759,3]
[404245938,1769998244824,-25000.0,0.00017768,3]
[404245939,1769998244833,-25000.0,0.00017777,3]
[404245940,1769998244842,-25000.0,0.00017786,3]
[404245941,1769998244851,-25000.0,0.00017794,3]
[404245942,1769998244861,-1510.0,0.000178,2]
[404245943,1769998244870,-25000.0,0.00017803,3]
[404245944,1769998244879,-500.0,0.00017808,2]
[404245945,1769998244890,-1000.0,0.00017808,2]
[404245946,1769998244900,-25000.0,0.00017812,3]
[404245947,1769998244909,-1000.0,0.00017816,2]
[404245948,1769998244919,-1000.0,0.00017816,2]
[404245949,1769998244930,-1000.0,0.00017816,2]
[404245950,1769998244941,-1000.0,0.00017816,2]
[404245951,1769998244949,-1000.0,0.00017816,2]
[404245952,1769998244957,-1485.10241,0.0001782,2]
[404245953,1769998244966,-1485.10242,0.0001782,2]
[404245954,1769998245137,-25000.0,0.00017821,3]
[404245955,1769998245146,-253.58,0.00017821,2]
[404245956,1769998245156,-25000.0,0.0001783,3]
[404245957,1769998245166,-25000.0,0.00017838,3]
[404245958,1769998245175,-500.0,0.00017844,2]
[404245959,1769998245184,-25000.0,0.00017847,3]
[404245960,1769998245193,-989.28,0.00017848,2]
[404245961,1769998245204,-200.0,0.00017855,2]
[404245962,1769998245213,-25000.0,0.00017856,3]
[404245963,1769998245222,-200.0,0.00017856,2]
[404245964,1769998245231,-200.0,0.00017856,2]
[404245965,1769998245241,-628.18837233,0.00017859,2]
[404245966,1769998245250,-947.23523297,0.00017859,2]
[404245967,1769998245259,-1002.53462592,0.00017859,2]
[404245968,1769998245269,-1001.57448357,0.00017859,2]
[404245969,1769998245278,-501.61630428,0.00017859,2]
[404245970,1769998245287,-501.65103435,0.00017859,2]
[404245971,1769998245296,-502.76473862,0.00017859,2]
[404245972,1769998245305,-489.52141814,0.00017859,2]
[404245973,1769998245315,-1002.03881526,0.00017859,2]
[404245974,1769998245325,-1003.16556405,0.00017859,2]
[404245975,1769998245335,-1004.86417643,0.00017859,2]
[404245976,1769998245344,-1501.81664462,0.00017859,2]
[404245977,1769998245354,-423.13827783,0.00017861,2]
[404245978,1769998245363,-500.0,0.00017863,2]
[404245979,1769998245373,-25000.0,0.00017865,3]
[404245980,1769998245382,-25000.0,0.00017874,3]
[404245981,1769998245392,-25000.0,0.00017882,3]
[404245982,1769998245401,-25000.0,0.00017891,3]
[404245983,1769998245411,-685.12725335,0.000179,2]
[404245984,1769998245421,-25000.0,0.000179,3]
[404245985,1769998245430,-317.35158593,0.000179,2]
[404245986,1769998245440,-221.31537779,0.000179,2]
[404245987,1769998245450,-17305.5201827,0.000179,2]
[404245988,1769998245459,-321.39465252,0.000179,2]
[404245989,1769998245469,-8217.94244244,0.000179,3]
[404245990,1769998245479,-4731.15314105,0.000179,2]
[404245991,1769998245488,-165.01,0.00017908,2]
[404245992,1769998245511,-500.0,0.00017918,2]
[404245993,1769998245521,-390.301032,0.00017952,2]
[404245994,1769998245530,-1265.9645033,0.00017958,2]
[404245995,1769998245540,-65830.050404,0.00017964,2]
[404245996,1769998245550,-238.0,0.00017971,2]
[404245997,1769998245559,-506.1208044,0.00017972,2]
[404245998,1769998245569,-502.60776792,0.00017982,2]
[404246000,1769998245579,-414.0,0.00017985,2]
[404246002,1769998245588,-5888.0,0.00017989,2]
[404246004,1769998245597,-520.86163867,0.0001799,2]
[404246006,1769998245606,-4910.0655551,0.00017997,2]
[404246008,1769998245616,-334167.4318114,0.00017997,2]
[404246010,1769998245626,-17864.5514188,0.00017997,2]
[404246013,1769998245636,-150.0,0.00017999,2]
[404246016,1769998245645,-154.57158237,0.00017999,2]
[404246019,1769998245655,-299.809,0.00017999,2]
[404246021,1769998245665,-300.0,0.00017999,2]
[404246023,1769998245675,-307.79570543,0.00017999,2]
[404246025,1769998245684,-300.0,0.00017999,2]
[404246027,1769998245693,-666.0,0.00017999,2]
[404246028,1769998245703,-42293.33530176,0.00018,2]
[404246031,1769998245712,-382501.99425886,0.00018,2]
[404246062,1769998245915,-828.73,0.00018,2]
[404246090,1769998246121,-4076.89884627,0.00016623,2]
[404246093,1769998246132,-159948.9742126,0.00018,2]
[404246095,1769998246141,-151.0,0.00018,2]
[404246097,1769998246150,-151.0,0.00018,2]
[404246099,1769998246159,-151.0,0.00018,2]
[404246101,1769998246169,-755252.13248209,0.00018,2]
[404246103,1769998246179,-1000.0,0.00018,2]
[404246105,1769998246190,-1000.0,0.00018,2]
[404246107,1769998246200,-1000.0,0.00018,2]
[404246109,1769998246210,-1000.0,0.00018,2]
[404246111,1769998246219,-1000.0,0.00018,2]
[404246113,1769998246228,-1000.0,0.00018,2]
[404246115,1769998246237,-1000.0,0.00018,2]
[404246117,1769998246246,-1000.0,0.00018,2]
[404246119,1769998246255,-1000.0,0.00018,2]
[404246121,1769998246265,-1000.0,0.00018,2]
[404246123,1769998246273,-1000.0,0.00018,2]
[404246125,1769998246282,-1000.0,0.00018,2]
[404246127,1769998246291,-1000.0,0.00018,2]
[404246129,1769998246301,-1000.0,0.00018,2]
[404246131,1769998246310,-1000.0,0.00018,2]
[404246133,1769998246319,-1000.0,0.00018,2]
[404246135,1769998246328,-1000.0,0.00018,2]
[404246137,1769998246337,-1000.0,0.00018,2]
[404246139,1769998246346,-1000.0,0.00018,2]
[404246141,1769998246355,-1000.0,0.00018,2]
[404246143,1769998246364,-1000.0,0.00018,2]
[404246145,1769998246373,-1000.0,0.00018,2]
[404246147,1769998246383,-1000.0,0.00018,2]
[404246149,1769998246392,-1000.0,0.00018,2]
[404246151,1769998246402,-1000.0,0.00018,2]
[404246153,1769998246411,-1000.0,0.00018,2]
[404246155,1769998246420,-1000.0,0.00018,2]
[404246157,1769998246429,-1029.9752701,0.00018,2]
[404246159,1769998246439,-3847482.35427929,0.00018,2]
[404246161,1769998246451,-62205.6718968,0.00018,2]
[404246163,1769998246462,-4135.41691771,0.00018,2]
[404246209,1769998246980,-151.0,0.00015282,2]
[404246211,1769998246989,-151.0,0.00015282,2]
[404246213,1769998246999,-2501.86264661,0.000179,2]
[404246216,1769998247011,-1575.03619966,0.000179,2]
[404246218,1769998247020,-4818.60856992,0.00018,2]
[404246228,1769998247102,-1284.0,0.00016992,2]
[404246255,1769998247368,-134.3616812,0.00016992,2]
[404246260,1769998347017,209.21744315,0.00014165,2]
[404246261,1769998347066,500.0,0.00014165,2]
[404246262,1769998347161,232.74751697,0.00014165,2]
[404246263,1769998347281,467.95322285,0.00014165,2]
[404246264,1769998352438,500.0,0.00014165,2]
[404246265,1769998352500,500.0,0.00014165,2]
[404246266,1769998352554,500.0,0.00014165,2]
[404246267,1769998352599,500.0,0.00014165,2]
[404246268,1769998352650,500.0,0.00014165,2]
[404246269,1769998352704,199.99999999,0.00014165,2]
[404246271,1769998370296,13663.88169156,0.00014166,2]
[404246291,1769998609027,3013.8,0.00012849,2]
[404246321,1769999123748,152.69007883,0.000201,30]
[404246389,1769999432058,-406.4731261,0.00013689,2]
[404246394,1769999432113,-652.6585089,0.00013689,2]
[404246395,1769999432124,-1200.0,0.00013758,2]
[404246396,1769999432135,-8043.77,0.00013759,2]
[404246397,1769999432146,-362.54018819,0.00013783,2]
[404246398,1769999432157,-300.0,0.00013843,2]
[404246399,1769999432167,-150.0,0.00013843,2]
[404246400,1769999432178,-35855.47636589,0.00013844,2]
[404246401,1769999432191,-82754.57363411,0.00013844,2]
[404246402,1769999432202,-1149.156,0.00013883,2]
[404246403,1769999432213,-13796.6459893,0.00013938,2]
[404246404,1769999432223,-2500.0,0.00013965,2]
[404246405,1769999432234,-1108.39868409,0.00013965,2]
[404246406,1769999432244,-1153.37125094,0.00013965,2]
[404246407,1769999432255,-1153.37125094,0.00013965,2]
[404246408,1769999432265,-1815.10633301,0.00013965,2]
[404246409,1769999432276,-8843.25208221,0.00013966,2]
[404246410,1769999432291,-222.63001927,0.00013966,2]
[404246411,1769999432301,-4789.84232074,0.00014027,2]
[404246412,1769999432313,-7539.85733143,0.00014027,2]
[404246413,1769999432329,-4988.30034783,0.00014027,2]
[404246414,1769999432339,-150.0,0.00014038,2]
[404246415,1769999432350,-150.00030077,0.00014041,2]
[404246417,1769999432362,-447.84750097,0.00014055,2]
[404246420,1769999432372,-242275.75956562,0.00014065,2]
[404246422,1769999432386,-3180.49739108,0.00014065,2]
[404246424,1769999432398,-318.93313674,0.00014065,2]
[404246426,1769999432409,-895.86861586,0.00014065,2]
[404246429,1769999432422,-980.42227396,0.00014065,2]
[404246431,1769999432433,-1586.0709996,0.00014065,2]
[404246433,1769999432446,-254.595,0.00014065,2]
[404246498,1769999438203,-3276.95,0.00014065,2]
[404246499,1769999438215,-3102.9351168,0.00014065,2]
[404246500,1769999438258,-34095.57651,0.00014065,2]
[404246501,1769999438273,-1750.70316796,0.00014065,2]
[404246503,1769999438316,-1346.99999996,0.00014065,2]
[404246504,1769999438328,-1918455.80997532,0.00014065,2]
[404246505,1769999438340,-996.81646882,0.00014065,2]
[404246506,1769999438351,-3277.79834194,0.00014065,2]
[404246507,1769999438363,-980.94016078,0.00014065,2]
[404246509,1769999438428,-985.68254733,0.00014065,2]
[404246525,1769999440295,-2779.63748441,0.00014065,2]
[404246526,1769999440307,-679458.00324382,0.00014065,2]
[404246527,1769999440318,-256.28727346,0.00014066,2]
[404246528,1769999440328,-500.0,0.00014158,2]
[404246529,1769999440340,-500.0,0.00014158,2]
[404246530,1769999440349,-500.0,0.00014158,2]
[404246531,1769999440359,-500.0,0.00014158,2]
[404246532,1769999440369,-500.0,0.00014158,2]
[404246533,1769999440379,-500.0,0.00014158,2]
[404246534,1769999440388,-500.0,0.00014158,2]
[404246535,1769999440398,-500.0,0.00014158,2]
[404246536,1769999440407,-500.0,0.00014158,2]
[404246537,1769999440415,-500.0,0.00014158,2]
[404246538,1769999440424,-500.0,0.00014158,2]
[404246539,1769999440433,-500.0,0.00014158,2]
[404246540,1769999440443,-500.0,0.00014158,2]
[404246541,1769999440452,-500.0,0.00014158,2]
[404246542,1769999440461,-500.0,0.00014158,2]
[404246543,1769999440470,-500.0,0.00014158,2]
[404246544,1769999440479,-500.0,0.00014158,2]
[404246545,1769999440488,-500.0,0.00014158,2]
[404246546,1769999440497,-151.0,0.00014158,2]
[404246547,1769999440507,-500.0,0.00014158,2]
[404246548,1769999440516,-500.0,0.00014158,2]
[404246549,1769999440526,-151.0,0.00014158,2]
[404246550,1769999440536,-500.0,0.00014158,2]
[404246551,1769999440545,-500.0,0.00014158,2]
[404246552,1769999440554,-151.0,0.00014158,2]
[404246553,1769999440563,-500.0,0.00014158,2]
[404246554,1769999440573,-151.0,0.00014158,2]
[404246555,1769999440582,-151.0,0.00014158,2]
[404246556,1769999440591,-151.0,0.00014158,2]
[404246557,1769999440600,-151.0,0.00014158,2]
[404246558,1769999440609,-151.0,0.00014158,2]
[404246559,1769999440619,-151.0,0.00014158,2]
[404246560,1769999440628,-151.0,0.00014158,2]
[404246561,1769999440637,-151.0,0.00014158,2]
[404246562,1769999440647,-179.96450468,0.00014165,2]
[404246563,1769999440656,-169.0654497,0.00014165,2]
[404246564,1769999440666,-500.0,0.00014165,2]
[404246566,1769999440675,-245.33495141,0.00014165,2]
[404246567,1769999440684,-271.99584368,0.00014165,2]
[404246568,1769999440694,-456.49425077,0.00014165,2]
[404246569,1769999440703,-500.0,0.00014165,2]